fUST/lending_fUST_20250513
["ID","MTS","AMOUNT","RATE_DAILY","PERIOD"]
[360900714,1747129843434,-200.60251246,0.00015068,2]
[360900716,1747129843444,-400.0,0.00015068,2]
[360900718,1747129843454,-475.12,0.00015068,2]
[360900720,1747129843463,-243.690893,0.00015068,2]
[360900722,1747129843473,-243.690893,0.00015068,2]
[360900724,1747129843482,-243.690893,0.00015068,2]
[360900726,1747129843492,-243.690893,0.00015068,2]
[360900728,1747129843501,-243.690893,0.00015068,2]
[360900730,1747129843511,-243.690893,0.00015068,2]
[360900732,1747129843520,-1403.19,0.00015068,2]
[360900734,1747129843530,-400.0,0.00015068,2]
[360900736,1747129843539,-400.0,0.00015068,2]
[360900738,1747129843549,-422.25,0.00015068,2]
[360900739,1747129843559,-400.0,0.00015068,2]
[360900740,1747129843568,-289.499641,0.00015068,2]
[360900741,1747129843578,-289.499641,0.00015068,2]
[360900742,1747129843588,-220.54649361,0.00015068,2]
[360900743,1747129843601,-289.499641,0.00015068,2]
[360900744,1747129843611,-289.499641,0.00015068,2]
[360900745,1747129843620,-400.0,0.00015068,2]
[360900746,1747129843631,-400.0,0.00015068,2]
[360900747,1747129843641,-444.42,0.00015068,2]
[360900748,1747129843651,-151.0,0.00015068,2]
[360900749,1747129843661,-281.525233,0.00015068,2]
[360900750,1747129843672,-400.0,0.00015068,2]
[360900751,1747129843682,-860.89,0.00015068,2]
[360900752,1747129843691,-400.0,0.00015068,2]
[360900753,1747129843701,-400.0,0.00015068,2]
[360900754,1747129843716,-400.0,0.00015068,2]
[360900755,1747129843726,-488.17,0.00015068,2]
[360900757,1747129843736,-218.744874,0.00015068,2]
[360900759,1747129843746,-218.744868,0.00015068,2]
[360900762,1747129843757,-592.12,0.00015068,2]
[360900764,1747129843767,-400.0,0.00015068,2]
[360900766,1747129843777,-155.650414,0.00015068,2]
[360900768,1747129843787,-690.33,0.00015068,2]
[360900771,1747129843797,-400.0,0.00015068,2]
[360900774,1747129843806,-400.0,0.00015068,2]
[360900776,1747129843816,-400.0,0.00015068,2]
[360900778,1747129843826,-400.0,0.00015068,2]
[360900780,1747129843836,-436.92,0.00015068,2]
[360900782,1747129843847,-400.0,0.00015068,2]
[360900784,1747129843856,-400.0,0.00015068,2]
[360900786,1747129843866,-923.94,0.00015068,2]
[360900788,1747129843876,-400.0,0.00015068,2]
[360900790,1747129843886,-400.0,0.00015068,2]
[360900794,1747129843896,-400.0,0.00015068,2]
[360900797,1747129843907,-16260.62,0.00015068,2]
[360900800,1747129843917,-151.0,0.00015068,2]
[360900803,1747129843926,-400.0,0.00015068,2]
[360900806,1747129843936,-384.44907012,0.00015068,2]
[360900809,1747129843946,-400.0,0.00015068,2]
[360900812,1747129843956,-400.0,0.00015068,2]
[360900815,1747129843966,-5517.3,0.00015068,2]
[360900817,1747129843976,-579.33,0.00015068,2]
[360900819,1747129843985,-400.0,0.00015068,2]
[360900821,1747129843995,-1449.31,0.00015068,2]
[360900823,1747129844005,-400.0,0.00015068,2]
[360900825,1747129844016,-400.0,0.00015068,2]
[360900828,1747129844027,-400.0,0.00015068,2]
[360900830,1747129844036,-483.41,0.00015068,2]
[360900832,1747129844046,-358.0,0.00015068,2]
[360900834,1747129844055,-1277.99,0.00015068,2]
[360900836,1747129844066,-400.0,0.00015068,2]
[360900838,1747129844075,-3504.65,0.00015068,2]
[360900840,1747129844085,-400.0,0.00015068,2]
[360900842,1747129844095,-400.0,0.00015068,2]
[360900844,1747129844105,-400.0,0.00015068,2]
[360900846,1747129844114,-400.0,0.00015068,2]
[360900849,1747129844124,-400.0,0.00015068,2]
[360900851,1747129844134,-400.0,0.00015068,2]
[360900853,1747129844143,-402.55,0.00015068,2]
[360900855,1747129844153,-400.0,0.00015068,2]
[360900857,1747129844163,-1247.00472302,0.00015107,2]
[360900858,1747129844173,-205.0,0.00015111,2]
[360900859,1747129844183,-785.0,0.0001517,2]
[360900860,1747129844193,-1978.53,0.00015273,2]
[360900861,1747129844203,-1247.00472302,0.00015314,2]
[360900862,1747129844213,-151.0,0.00015321,2]
[360900863,1747129844223,-151.0,0.00015321,2]
[360900864,1747129844232,-125.67305496,0.00015321,2]
[360900871,1747129845933,-152.459,0.00013517,2]
[360900875,1747129846406,-2176.21291242,0.00013517,2]
[360900906,1747129846824,-2671.32808758,0.00013517,2]
[360900907,1747129846834,-179.04079916,0.00014788,2]
[360900908,1747129846843,-400.0,0.00014789,2]
[360900909,1747129846852,-400.0,0.00014789,2]
[360900910,1747129846861,-400.0,0.00014792,2]
[360900911,1747129846870,-400.0,0.00014792,2]
[360900912,1747129846879,-151.0,0.00014792,2]
[360900913,1747129846888,-400.0,0.00014792,2]
[360900914,1747129846897,-400.0,0.00015063,2]
[360900915,1747129846907,-400.0,0.00015066,2]
[360900916,1747129846916,-400.0,0.00015066,2]
[360900917,1747129846925,-25.32694504,0.00015321,2]
[360900918,1747129846934,-151.0,0.00015321,2]
[360900919,1747129846943,-151.0,0.00015321,2]
[360900920,1747129846952,-151.0,0.00015321,2]
[360900921,1747129846961,-243.690893,0.00015321,2]
[360900923,1747129846970,-243.690893,0.00015321,2]
[360900924,1747129846979,-289.499641,0.00015321,2]
[360900927,1747129846988,-289.499641,0.00015321,2]
[360900929,1747129846997,-400.0,0.00015337,2]
[360900931,1747129847007,-651.01,0.00015337,2]
[360900933,1747129847018,-400.0,0.00015337,2]
[360900935,1747129847027,-400.0,0.00015337,2]
[360900937,1747129847036,-2021.42,0.00015337,2]
[360900939,1747129847046,-2153.42,0.00015337,2]
[360900941,1747129847055,-3053.48,0.00015337,2]
[360900943,1747129847064,-7100.92,0.00015337,2]
[360900944,1747129847073,-502.26,0.00015337,2]
[360900945,1747129847083,-400.0,0.00015337,2]
[360900946,1747129847092,-400.0,0.00015337,2]
[360900947,1747129847103,-1156.29,0.00015337,2]
[360900948,1747129847112,-400.0,0.00015337,2]
[360900949,1747129847122,-400.0,0.00015337,2]
[360900950,1747129847131,-400.0,0.00015338,2]
[360900951,1747129847140,-503.32,0.00015338,2]
[360900952,1747129847149,-226.57092278,0.00015338,2]
[360900953,1747129847159,-440.01,0.00015338,2]
[360900954,1747129847168,-982.72,0.00015338,2]
[360900955,1747129847177,-400.0,0.00015338,2]
[360900956,1747129847186,-836.36,0.00015338,2]
[360900957,1747129847196,-575.58,0.00015338,2]
[360900958,1747129847206,-406.32,0.00015338,2]
[360900959,1747129847215,-400.0,0.00015338,2]
[360900960,1747129847224,-400.0,0.00015338,2]
[360900961,1747129847233,-539.75,0.00015338,2]
[360900962,1747129847243,-468.48,0.00015338,2]
[360900963,1747129847252,-400.0,0.00015338,2]
[360900964,1747129847261,-400.0,0.00015338,2]
[360900965,1747129847271,-400.0,0.00015338,2]
[360900966,1747129847280,-400.0,0.00015338,2]
[360900967,1747129847289,-400.0,0.00015338,2]
[360900968,1747129847298,-1535.59,0.00015338,2]
[360900969,1747129847307,-400.0,0.00015338,2]
[360900970,1747129847316,-400.0,0.00015338,2]
[360900971,1747129847326,-13800.47,0.00015338,2]
[360900972,1747129847335,-400.0,0.00015338,2]
[360900973,1747129847344,-400.0,0.00015338,2]
[360900974,1747129847353,-482.35,0.00015338,2]
[360900975,1747129847362,-691.82,0.00015338,2]
[360900976,1747129847371,-400.0,0.00015338,2]
[360900977,1747129847380,-400.0,0.00015338,2]
[360900978,1747129847390,-400.0,0.00015338,2]
[360900980,1747129847399,-699.19,0.00015338,2]
[360900981,1747129847408,-400.0,0.00015338,2]
[360900982,1747129847417,-3552.85,0.00015338,2]
[360900983,1747129847426,-400.0,0.00015338,2]
[360900984,1747129847436,-400.0,0.00015338,2]
[360900985,1747129847445,-400.0,0.00015338,2]
[360900986,1747129847454,-1770.54484116,0.00015338,2]
[360900987,1747129848207,-409.83663402,0.00014789,2]
[360900988,1747129848216,-539.19,0.00014792,2]
[360900989,1747129848226,-400.0,0.00014792,2]
[360900990,1747129848236,-400.0,0.00014794,2]
[360900991,1747129848246,-2265.20515884,0.00015338,2]
[360900992,1747129848256,-498.59,0.00015338,2]
[360900993,1747129848266,-848.88,0.00015338,2]
[360900994,1747129848276,-593.69,0.00015338,2]
[360900995,1747129848287,-328.50837454,0.00015338,2]
[360900996,1747129848296,-400.0,0.00015338,2]
[360900997,1747129848306,-400.0,0.00015338,2]
[360900998,1747129848316,-547.97,0.00015338,2]
[360900999,1747129848326,-400.0,0.00015338,2]
[360901000,1747129848336,-8755.13,0.00015338,2]
[360901001,1747129848346,-400.0,0.00015338,2]
[360901002,1747129848355,-400.0,0.00015338,2]
[360901003,1747129848364,-400.0,0.00015338,2]
[360901004,1747129848375,-400.0,0.00015338,2]
[360901005,1747129848384,-15158.2,0.00015338,2]
[360901006,1747129848394,-400.0,0.00015338,2]
[360901007,1747129848404,-977.93,0.00015338,2]
[360901008,1747129848414,-834.59,0.00015338,2]
[360901009,1747129848424,-700.0,0.00015338,2]
[360901010,1747129848433,-764.84,0.00015338,2]
[360901011,1747129848442,-400.0,0.00015338,2]
[360901012,1747129848452,-583.5,0.00015338,2]
[360901013,1747129848462,-400.0,0.00015338,2]
[360901014,1747129848471,-838.37,0.00015338,2]
[360901015,1747129848481,-438.18044672,0.00015338,2]
[360901016,1747129848491,-400.0,0.00015338,2]
[360901017,1747129848501,-710.58,0.00015338,2]
[360901018,1747129848510,-1043.93,0.00015338,2]
[360901019,1747129848520,-400.0,0.00015338,2]
[360901020,1747129848529,-686.24,0.00015338,2]
[360901021,1747129848540,-400.0,0.00015338,2]
[360901022,1747129848550,-88.92626826,0.00015338,2]
[360901023,1747129848609,-311.07373174,0.00015338,2]
[360901024,1747129848619,-1632.5605052,0.00015338,2]
[360901025,1747129853846,-194.256175,0.00013382,2]
[360901026,1747129868966,-196.47763723,0.00013382,2]
[360901027,1747129885117,-288.16200006,0.00013382,2]
[360901045,1747130825121,-4602.01784554,0.00013645,2]
[360901046,1747130835083,-397.98215446,0.00013645,2]
[360901047,1747130835103,-332.390716,0.00013699,2]
[360901048,1747130835124,-198.33257979,0.00013783,2]
[360901049,1747130836092,-241.98509551,0.00013783,2]
[360901050,1747130836115,-160.44512068,0.00013787,2]
[360901052,1747130847137,-89.55487932,0.00013787,2]
[360901053,1747130847158,-250.64636734,0.00014522,2]
[360901054,1747130847178,-192.74178863,0.00014681,2]
[360901055,1747130847198,-300.0,0.00014771,2]
[360901056,1747130847219,-300.0,0.00014771,2]
[360901057,1747130847240,-500.0,0.00014772,2]
[360901058,1747130847260,-500.0,0.00014772,2]
[360901059,1747130847280,-500.0,0.00014772,2]
[360901060,1747130847301,-500.0,0.00014772,2]
[360901061,1747130847323,-500.0,0.00014772,2]
[360901062,1747130847343,-491.68195653,0.00014772,2]
[360901063,1747130847366,-500.0,0.00014772,2]
[360901064,1747130847388,-500.0,0.00014772,2]
[360901065,1747130847413,-500.0,0.00014772,2]
[360901066,1747130847434,-420.0227314,0.00014772,2]
[360901114,1747131031673,-5000.0,0.0001365,2]
[360901116,1747131031683,-300.0,0.0001477,2]
[360901118,1747131031693,-300.0,0.0001477,2]
[360901120,1747131031702,-300.0,0.0001477,2]
[360901122,1747131031712,-1200.0,0.0001477,2]
[360901124,1747131031721,-500.0,0.00014771,2]
[360901126,1747131031731,-500.0,0.00014771,2]
[360901128,1747131031740,-165.74243961,0.00014771,2]
[360901130,1747131031749,-500.0,0.00014771,2]
[360901132,1747131031759,-500.0,0.00014771,2]
[360901134,1747131031768,-500.0,0.00014771,2]
[360901136,1747131031777,-459.76786098,0.00014771,2]
[360901138,1747131031786,-500.0,0.00014771,2]
[360901139,1747131031796,-500.0,0.00014771,2]
[360901142,1747131031806,-400.0,0.00014771,2]
[360901144,1747131031815,-373.27480959,0.00014772,2]
[360901146,1747131031825,-400.0,0.00014772,2]
[360901148,1747131031834,-427.22,0.00014772,2]
[360901150,1747131031844,-400.0,0.00014772,2]
[360901152,1747131031853,-401.14507919,0.00014772,2]
[360901154,1747131031862,-1785.58,0.00014772,2]
[360901156,1747131031871,-2688.46,0.00014772,2]
[360901158,1747131031881,-6245.39,0.00014772,2]
[360901160,1747131031891,-400.0,0.00014772,2]
[360901162,1747131031900,-573.04,0.00014772,2]
[360901164,1747131031910,-16389.56565527,0.00014772,2]
[360901166,1747131031919,-500.0,0.00014773,2]
[360901168,1747131031929,-1000.0,0.00014773,2]
[360901170,1747131031938,-500.0,0.00014773,2]
[360901172,1747131031947,-500.0,0.00014773,2]
[360901174,1747131031956,-500.0,0.00014773,2]
[360901176,1747131031965,-500.0,0.00014773,2]
[360901178,1747131031975,-500.0,0.00014773,2]
[360901180,1747131031983,-500.0,0.00014773,2]
[360901182,1747131031992,-549.93598463,0.0001478,2]
[360901183,1747131032002,-500.0,0.0001478,2]
[360901185,1747131032012,-500.0,0.0001478,2]
[360901187,1747131032021,-500.0,0.0001478,2]
[360901189,1747131032031,-500.0,0.0001478,2]
[360901191,1747131032040,-281.46957233,0.0001478,2]
[360901193,1747131032051,-500.0,0.0001478,2]
[360901196,1747131032060,-500.0,0.0001478,2]
[360901198,1747131032069,-500.0,0.0001478,2]
[360901200,1747131032078,-500.0,0.0001478,2]
[360901202,1747131032087,-400.0,0.00014782,2]
[360901204,1747131032095,-439.47,0.00014782,2]
[360901205,1747131032104,-1273.68,0.00014782,2]
[360901207,1747131032114,-400.0,0.00014782,2]
[360901209,1747131032124,-400.0,0.00014782,2]
[360901211,1747131032133,-12124.72,0.00014782,2]
[360901213,1747131032143,-2141.25,0.00014782,2]
[360901215,1747131032152,-3125.41,0.00014782,2]
[360901217,1747131032161,-483.00008778,0.00014782,2]
[360901421,1747131040052,-597.95323649,0.00014634,2]
[360901560,1747131045819,-4402.04676351,0.00014634,2]
[360901562,1747131045830,-439.97420678,0.0001477,2]
[360901564,1747131045840,-400.0,0.00014771,2]
[360901566,1747131045849,-969.59,0.00014771,2]
[360901568,1747131045859,-400.0,0.00014771,2]
[360901570,1747131045869,-500.0,0.00014771,2]
[360901572,1747131045878,-497.02870063,0.00014771,2]
[360901574,1747131045888,-384.95518924,0.00014771,2]
[360901576,1747131045897,-500.0,0.00014771,2]
[360901578,1747131045906,-500.0,0.00014771,2]
[360901580,1747131045916,-500.0,0.00014771,2]
[360901582,1747131045925,-500.0,0.00014771,2]
[360901584,1747131045935,-497.02870063,0.00014771,2]
[360901586,1747131045944,-17829.35991222,0.00014782,2]
[360901588,1747131045953,-3547.95,0.00014782,2]
[360901590,1747131045962,-519.48,0.00014782,2]
[360901592,1747131045972,-2106.00007846,0.00014782,2]
[360901598,1747131046027,-1488.542,0.00014782,2]
[360901668,1747132026191,-5000.0,0.00013497,2]
[360901669,1747132026212,-315.77118,0.00013699,2]
[360901670,1747132026232,-215.772639,0.0001377,2]
[360901671,1747132026252,-181.5580592,0.00013771,2]
[360901672,1747132026271,-498.0624294,0.00013885,2]
[360901673,1747132026292,-168.64906506,0.00014669,2]
[360901674,1747132026311,-597.9532365,0.0001467,2]
[360901675,1747132026331,-155.01851233,0.00014762,2]
[360901676,1747132026351,-300.0,0.00014766,2]
[360901677,1747132026372,-1200.0,0.00014767,2]
[360901678,1747132026392,-400.0,0.00014768,2]
[360901679,1747132026412,-118.91001901,0.00014768,2]
[360901680,1747132027105,-432.91998099,0.00014768,2]
[360901681,1747132027131,-500.0,0.00014768,2]
[360901682,1747132027152,-269.46863247,0.00014768,2]
[360901683,1747132027172,-500.0,0.00014768,2]
[360901684,1747132027193,-500.0,0.00014768,2]
[360901685,1747132027213,-448.81148025,0.00014768,2]
[360901686,1747132027233,-400.0,0.00014768,2]
[360901687,1747132027255,-1651.21280225,0.00014768,2]
[360901690,1747132042321,-2362.57291837,0.0001462,2]
[360901691,1747132043308,-254.36804391,0.0001462,2]
[360901693,1747132045093,-1254.2782373,0.0001462,2]
[360901766,1747132231925,-5000.0,0.00014474,2]
[360901769,1747132231935,-1200.0,0.00014766,2]
[360901771,1747132231946,-528.84,0.00014767,2]
[360901773,1747132231955,-400.0,0.00014767,2]
[360901775,1747132231965,-1610.28,0.00014767,2]
[360901777,1747132231975,-1666.27970411,0.00014767,2]
[360901779,1747132231987,-4386.43029589,0.00014767,2]
[360901781,1747132232003,-1934.24,0.00014767,2]
[360901783,1747132232013,-400.0,0.00014767,2]
[360901785,1747132232022,-400.0,0.00014767,2]
[360901787,1747132232032,-404.5,0.00014767,2]
[360901789,1747132232042,-549.16,0.00014767,2]
[360901791,1747132232051,-500.0,0.00014767,2]
[360901794,1747132232061,-435.7309522,0.00014767,2]
[360901796,1747132232071,-500.0,0.00014767,2]
[360901798,1747132232080,-971.35,0.00014767,2]
[360901800,1747132232090,-400.0,0.00014767,2]
[360901802,1747132232101,-400.0,0.00014768,2]
[360901805,1747132232111,-1220.61,0.00014768,2]
[360901807,1747132232120,-400.0,0.00014768,2]
[360901809,1747132232130,-1957.41376729,0.00014768,2]
[360901811,1747132232141,-144.61623271,0.00014768,2]
[360901813,1747132232151,-400.0,0.00014768,2]
[360901815,1747132232160,-11723.31,0.00014768,2]
[360901817,1747132232169,-12057.80424838,0.00014768,2]
[360901819,1747132232181,-2462.9131946,0.00014768,2]
[360901850,1747132237870,-400.0,0.00014767,2]
[360901852,1747132237886,-3078.63255702,0.00014768,2]
[360901855,1747132237897,-475.4808105,0.00014768,2]
[360901858,1747132237923,-598.41036928,0.00014768,2]
[360901861,1747132237935,-987.11578231,0.00014768,2]
[360901870,1747132238031,-984.17303791,0.00014768,2]
[360901873,1747132238044,-3450.12,0.00014768,2]
[360901875,1747132238053,-497.84,0.00014768,2]
[360901877,1747132238063,-7529.08,0.00014768,2]
[360901879,1747132238075,-400.0,0.00014768,2]
[360901882,1747132238087,-13346.76,0.00014768,2]
[360901884,1747132238096,-2603.33,0.00014768,2]
[360901886,1747132238107,-669.23,0.00014768,2]
[360901888,1747132238116,-2648.0,0.00014768,2]
[360901890,1747132238126,-621.76,0.00014768,2]
[360901892,1747132238136,-2290.49,0.00014768,2]
[360901894,1747132238146,-6085.9,0.00014768,2]
[360901896,1747132238157,-3632.68037014,0.00014768,2]
[360901979,1747132240092,-5000.0,0.00014619,2]
[360901981,1747132240101,-272.11789834,0.00014767,2]
[360901986,1747132240147,-897.63210166,0.00014767,2]
[360901988,1747132240157,-952.49962986,0.00014768,2]
[360901990,1747132240167,-420.44,0.00014768,2]
[360901992,1747132240177,-400.0,0.00014768,2]
[360901995,1747132240187,-450.13,0.00014768,2]
[360901997,1747132240197,-400.0,0.00014768,2]
[360901999,1747132240207,-1067.65,0.00014768,2]
[360902001,1747132240218,-1164.8,0.00014768,2]
[360902003,1747132240227,-3208.31,0.00014768,2]
[360902005,1747132240237,-3006.97,0.00014768,2]
[360902007,1747132240247,-4787.28,0.00014768,2]
[360902009,1747132240258,-640.71,0.00014768,2]
[360902011,1747132240268,-1671.86,0.00014768,2]
[360902013,1747132240278,-400.0,0.00014768,2]
[360902015,1747132240287,-1481.5,0.00014768,2]
[360902017,1747132240297,-400.0,0.00014768,2]
[360902019,1747132240306,-307.89882863,0.00014769,2]
[360902021,1747132240316,-400.0,0.00014769,2]
[360902023,1747132240325,-400.0,0.00014769,2]
[360902025,1747132240335,-400.0,0.00014769,2]
[360902027,1747132240344,-400.0,0.00014769,2]
[360902029,1747132240354,-400.0,0.00014769,2]
[360902031,1747132240364,-1460.82,0.00014769,2]
[360902033,1747132240374,-400.0,0.00014769,2]
[360902035,1747132240384,-400.0,0.00014769,2]
[360902037,1747132240393,-400.0,0.00014769,2]
[360902039,1747132240403,-400.0,0.00014769,2]
[360902041,1747132240413,-139.29518573,0.00014769,2]
[360902169,1747132243095,-1217.35,0.00014767,2]
[360902170,1747132243106,-407.86,0.00014767,2]
[360902171,1747132243117,-260.70481427,0.00014769,2]
[360902172,1747132243126,-88.85555373,0.00014769,2]
[360902208,1747132246215,-400.0,0.00014767,2]
[360902210,1747132246225,-400.0,0.00014767,2]
[360902212,1747132246234,-604.47444627,0.00014769,2]
[360902214,1747132246244,-985.06,0.00014769,2]
[360902216,1747132246254,-827.97,0.00014769,2]
[360902218,1747132246263,-400.0,0.00014769,2]
[360902220,1747132246273,-635.91,0.00014769,2]
[360902222,1747132246282,-1007.81,0.00014769,2]
[360902224,1747132246292,-1192.35,0.00014769,2]
[360902227,1747132246302,-2029.96,0.00014769,2]
[360902229,1747132246311,-400.0,0.00014769,2]
[360902231,1747132246320,-400.0,0.00014769,2]
[360902233,1747132246330,-626.52,0.00014769,2]
[360902235,1747132246339,-522.94555373,0.00014769,2]
[360902237,1747132246351,-269.76444627,0.00014769,2]
[360902239,1747132246360,-7.61930373,0.00014769,2]
[360902255,1747132246750,-307.45790692,0.00014769,2]
[360902256,1747132246771,-78.66845296,0.00014769,2]
[360902257,1747132246780,-960.44,0.00014769,2]
[360902258,1747132246790,-400.0,0.00014769,2]
[360902259,1747132246799,-492.41,0.00014769,2]
[360902260,1747132246809,-400.0,0.00014769,2]
[360902261,1747132246818,-1195.27,0.00014769,2]
[360902262,1747132246827,-515.9,0.00014769,2]
[360902263,1747132246837,-400.0,0.00014769,2]
[360902264,1747132246846,-2027.32,0.00014769,2]
[360902265,1747132246855,-2748.21,0.00014769,2]
[360902266,1747132246866,-1807.09,0.00014769,2]
[360902267,1747132246875,-1682.85,0.00014769,2]
[360902268,1747132246884,-474.01,0.00014769,2]
[360902269,1747132246893,-546.05,0.00014769,2]
[360902270,1747132246903,-2036.29,0.00014769,2]
[360902271,1747132246912,-2230.46,0.00014769,2]
[360902272,1747132246921,-737.35,0.00014769,2]
[360902273,1747132246931,-400.0,0.00014769,2]
[360902274,1747132246940,-400.0,0.00014769,2]
[360902275,1747132246949,-850.69,0.00014769,2]
[360902276,1747132246958,-400.0,0.00014769,2]
[360902277,1747132246968,-400.0,0.00014769,2]
[360902278,1747132246977,-400.0,0.00014769,2]
[360902279,1747132246987,-400.0,0.00014769,2]
[360902280,1747132247000,-400.0,0.00014769,2]
[360902281,1747132247011,-498.46,0.00014769,2]
[360902282,1747132247020,-692.16,0.00014769,2]
[360902283,1747132247030,-717.0,0.00014769,2]
[360902284,1747132247041,-400.0,0.00014769,2]
[360902285,1747132247051,-443.17,0.00014769,2]
[360902287,1747132247060,-3327.98,0.00014769,2]
[360902289,1747132247070,-532.3,0.00014769,2]
[360902291,1747132247080,-486.26,0.00014769,2]
[360902293,1747132247091,-1040.13,0.00014769,2]
[360902295,1747132247100,-3287.05,0.00014769,2]
[360902296,1747132247110,-400.0,0.00014769,2]
[360902297,1747132247120,-525.82276732,0.00014769,2]
[360902298,1747132247129,-4619.22,0.00014769,2]
[360902299,1747132247141,-1140.66,0.00014769,2]
[360902300,1747132247151,-690.77,0.00014769,2]
[360902301,1747132247161,-1213.14,0.00014769,2]
[360902302,1747132247170,-1693.84,0.00014769,2]
[360902303,1747132247179,-453.14,0.00014769,2]
[360902304,1747132247189,-699.64,0.00014769,2]
[360902305,1747132247199,-1908.75,0.00014769,2]
[360902306,1747132247208,-400.0,0.00014769,2]
[360902307,1747132247217,-400.0,0.00014769,2]
[360902308,1747132247227,-1220.11,0.00014769,2]
[360902309,1747132247236,-400.0,0.00014769,2]
[360902310,1747132247246,-400.0,0.00014769,2]
[360902311,1747132247255,-1225.0,0.00014769,2]
[360902312,1747132247265,-400.0,0.00014769,2]
[360902313,1747132247274,-94.84365758,0.00014769,2]
[360902314,1747132247287,-1056.69634242,0.00014769,2]
[360902315,1747132247297,-617.26,0.00014769,2]
[360902316,1747132247306,-400.0,0.00014769,2]
[360902317,1747132247315,-1068.89,0.00014769,2]
[360902318,1747132247325,-400.0,0.00014769,2]
[360902319,1747132247334,-500.0,0.00014769,2]
[360902320,1747132247344,-475.44,0.00014769,2]
[360902321,1747132247354,-851.58,0.00014769,2]
[360902322,1747132247363,-400.0,0.00014769,2]
[360902323,1747132247372,-3349.71,0.00014769,2]
[360902324,1747132247382,-829.42,0.00014769,2]
[360902325,1747132247391,-537.73,0.00014769,2]
[360902326,1747132247401,-1265.05,0.00014769,2]
[360902327,1747132247410,-430.64,0.00014769,2]
[360902328,1747132247419,-732.28046097,0.00014769,2]
[360902332,1747132325159,-203.88889079,0.00014522,2]
[360902343,1747132503807,-346.618328,0.000104,2]
[360902344,1747132509624,-230.23822979,0.000104,2]
[360902345,1747132524101,-269.76177021,0.000104,2]
[360902346,1747132540903,-423.78892841,0.000104,2]
[360902348,1747132554086,-213.89203109,0.000104,2]
[360902349,1747132555593,-1900.0,0.000104,2]
[360902350,1747132569085,-243.10366515,0.000104,2]
[360902351,1747132584677,-360.10036042,0.000104,2]
[360902352,1747132599022,-182.90394334,0.000104,2]
[360902353,1747132614087,-267.9280847,0.000104,2]
[360902354,1747132629065,-152.00844339,0.000104,2]
[360902355,1747132644660,-152.00844339,0.00010296,2]
[360902356,1747132659647,-229.0914388,0.00010296,2]
[360902358,1747132674390,-155.48722296,0.00010296,2]
[360902359,1747132682746,-4361.0,0.00010296,2]
[360902360,1747132691372,-102.41289485,0.00010296,2]
[360902361,1747132691394,-319.12266569,0.000104,2]
[360902362,1747132704097,-200.30416869,0.000104,2]
[360902363,1747132719054,-463.58489623,0.00010296,2]
[360902364,1747132734148,-151.52692452,0.00010296,2]
[360902365,1747132749129,-213.82455512,0.00010296,2]
[360902366,1747132751403,-4145.0,0.00010296,2]
[360902367,1747132764635,-26.06362413,0.00010296,2]
[360902368,1747132764657,-267.22938112,0.000104,2]
[360902369,1747132764678,-46.78540038,0.000108,2]
[360902370,1747132779044,-353.41686797,0.00010692,2]
[360902371,1747132794238,-177.90104503,0.00010692,2]